Workbook

Sheet Documentatie
D2: HAMOR Soft SRL | H2: 31/07/2025
D3: www.hamorsoft.ro
D5: Excel pentru
D6: stabilire note contabile diferente de inventar scriptic-faptiv.
D7: modificare cote TVA si pret si note contabile aferente daca:
D8: -pret vanzare ramane fix si recalculeaza adaosul si pretul de livrare sau
D9: -adaosul ramane fix si se recalculeaza TVA neexigibil si pretul de vanzare
D11: Pret livrare = pret achizitie + adaos
D12: Pret vanzare = pret livrare + valoare TVA
D14: Operare:
E15: 1. Inventarul faptic fie se introduce in sheetul "Inventar",
F16: fie se importa un excel similar cu butonul "Import Inventar din alt excel"
E17: 2. Diferentele de Inventar scriptic si faptic se calculeaza in sheetul "NotaInventar"
F18: Soldurile 371, 378, 4428 se inscriu in celulele respective
F19: Pentru calcul, se utilizeaza butonul "Preluare din Inventar"
F20: Se poate utiliza in cazul oricarui inventar faptic, nu numai la modificare TVA.
E21: 3. Pentru a recalcula TVA si preturile, dupa trecerea la cote de TVA 11% si 21%:
F22: Se verifica/suprascriu cotele TVA noi,
F23: Daca se pastreaza pretul de vanzare, se utilizeaza "PuVanzRamane"
F24: Daca se pastreaza adaosul, se utilizeaza "AdaosRamane"
D26: Observatie:
E27: Pentru deblocare Excel dupa descarcare:
F28: Click dr, Properties, Unlock
F29: Enable Content
E30: Daca apare avertizarea ActiveX content in this file is blocked:
F31: File, Options, Trust Center, Trust Center Settings , ActiveX settings, Prompt me before enabling all controls with minimal restrictions

Sheet Inventar
A1: ABC SRL/MA1 | F1: Data | G1: 31/07/2025
A2: Note contabile de corectie inventar
A4: Nr.crt | B4: Denumire | C4: UM | D4: Stoc | E4: Cota TVA | F4: PU Vanzare | G4: Val.vanzare
A5: 1 | B5: Produs 0/0 | C5: BUC | D5: 10 | E5: 0 | F5: 20 | G5: =ROUND(F5*D5,2) -> 200
A6: 2 | B6: Produs 0/11 | C6: BUC | D6: 10 | E6: 0 | F6: 20 | G6: 200
A7: 3 | B7: Produs 5/11 | C7: BUC | D7: 10 | E7: 5 | F7: 21 | G7: 210
A8: 4 | B8: Produs 5/21 | C8: BUC | D8: 10 | E8: 5 | F8: 21 | G8: 210
A9: 5 | B9: Produs 9/11 | C9: KG | D9: 10 | E9: 9 | F9: 22 | G9: 220
A10: 6 | B10: Produs 9/21 | C10: KG | D10: 10 | E10: 9 | F10: 22 | G10: 220
A11: 7 | B11: Produs 19/21 | C11: KG | D11: 10 | E11: 19 | F11: 24 | G11: 240
B12: TOTAL | G12: =SUM(G5:G11) -> 1500

Sheet NotaInventar
A1: ABC SRL/MA1 | F1: Data | G1: 31/07/2025
A2: Inventar si note contabile de corectie
A4: Nr.crt | B4: Denumire | C4: UM | D4: Stoc | E4: Cota TVA | F4: PU Vanzare | G4: Val.vanzare | H4: Pu livrare | I4: Val.livrare | J4: Pu TVA | K4: Val. TVA
A5: 1 | B5: Produs 0/0 | C5: BUC | D5: 10 | E5: 0 | F5: 20 | G5: =ROUND(F5*D5,2) -> 200 | H5: =ROUND(F5*100/(100+E5), 2) -> 20 | I5: =ROUND(G5-K5, 2) -> 200 | J5: =ROUND(F5*E5/(100+E5), 2) -> 0 | K5: =ROUND(J5*D5, 2) -> 0
A6: 2 | B6: Produs 0/11 | C6: BUC | D6: 10 | E6: 0 | F6: 20 | G6: 200 | H6: 20 | I6: 200 | J6: 0 | K6: 0
A7: 3 | B7: Produs 5/11 | C7: BUC | D7: 10 | E7: 5 | F7: 21 | G7: 210 | H7: 20 | I7: 200 | J7: 1 | K7: 10
A8: 4 | B8: Produs 5/21 | C8: BUC | D8: 10 | E8: 5 | F8: 21 | G8: 210 | H8: 20 | I8: 200 | J8: 1 | K8: 10
A9: 5 | B9: Produs 9/11 | C9: KG | D9: 10 | E9: 9 | F9: 22 | G9: 220 | H9: 20.18 | I9: 201.8 | J9: 1.82 | K9: 18.2
A10: 6 | B10: Produs 9/21 | C10: KG | D10: 10 | E10: 9 | F10: 22 | G10: =ROUND(F10*D10,2) -> 220 | H10: =ROUND(F10*100/(100+E10), 2) -> 20.18 | I10: =ROUND(G10-K10, 2) -> 201.8 | J10: =ROUND(F10*E10/(100+E10), 2) -> 1.82 | K10: =ROUND(J10*D10, 2) -> 18.2
A11: 7 | B11: Produs 19/21 | C11: KG | D11: 10 | E11: 19 | F11: 24 | G11: =ROUND(F11*D11,2) -> 240 | H11: =ROUND(F11*100/(100+E11), 2) -> 20.17 | I11: =ROUND(G11-K11, 2) -> 201.7 | J11: =ROUND(F11*E11/(100+E11), 2) -> 3.83 | K11: =ROUND(J11*D11, 2) -> 38.3
B12: TOTAL | G12: =SUM(G5:G11) -> 1500 | I12: =ROUND(SUM(I5:I11), 2) -> 1405.3 | K12: =ROUND(SUM(K5:K11), 2) -> 94.7
A15: Calcule
A17: Denumire | E17: Cont | F17: Val.veche din hCONT | G17: Val.noua din inventar | H17: Diferenta
A18: Val.vanzare 0% | G18: =SUMIF(E5:E11,0,G5:G11) -> 400
A19: Val.vanzare 5% | G19: =SUMIF(E5:E11,5,G5:G11) -> 420
A20: Val.vanzare 9% | G20: =SUMIF(E5:E11,9,G5:G11) -> 440
A21: Val.vanzare 19% | G21: =SUMIF(E5:E11,19,G5:G11) -> 240 | I21: %
A22: Total val. vanzare | E22: 371.2 | F22: 6000 | G22: =SUM(G18:G21) -> 1500 | H22: =G22-F22 -> -4500 | I22: =H22/F22 -> -0.75
A23: TVA 5% | G23: =SUMIF(E5:E11,5,K5:K11) -> 20
A24: TVA9% | G24: =SUMIF(E5:E11,9,K5:K11) -> 36.4
A25: TVA19% | G25: =SUMIF(E5:E11,19,K5:K11) -> 38.3
A26: Total TVA | E26: 4428 | F26: 950 | G26: =SUM(G23:G25) -> 94.7 | H26: =G26-F26 -> -855.3
A27: Val. livrare 0% | G27: =SUMIF(E5:E11,0,I5:I11) -> 400
A28: Val.livrare 5% | G28: =SUMIF(E5:E11,5,I5:I11) -> 400
A29: Val.livrare 9% | G29: =SUMIF(E5:E11,9,I5:I11) -> 403.6
A30: Val.livrare 19% | G30: =SUMIF(E5:E11,19,I5:I11) -> 201.7
A31: Total val.livrare | F31: =F22-F26 -> 5050 | G31: =SUM(G27:G30) -> 1405.3 | H31: =G31-F31 -> -3644.7
A32: Adaos | E32: 378.2 | F32: 550 | G32: =ROUND(F34*G31,2) -> 153.05 | H32: =G32-F32 -> -396.95 | I32: Verificare
A33: Val.achizitie | F33: =F22-F26-F32 -> 4500 | G33: =ROUND(F35*G31,2) -> 1252.25 | H33: =G33-F33 -> -3247.75 | I33: =H22-H26-H32 -> -3247.75
A34: % adaos | F34: =F32/F31 -> 0.1089108911
A35: % val.achiztie | F35: =F33/F31 -> 0.8910891089
A37: Nota contabila la 31/07/2025
A38: Dif. val.achizitie | E38: 6… | F38: = | G38: 371.2 | H38: =-H33 -> 3247.75
A39: Dif.TVA | E39: 4428 | F39: = | G39: 371.2 | H39: =-H26 -> 855.3
A40: Dif.adaos | E40: 378.2 | F40: = | G40: 371.2 | H40: =-H32 -> 396.95
A41: Dif.val vanzare | E41: Verificare | H41: =SUM(H38:H40) -> 4500

Sheet PuVanzRamane
A1: ABC SRL/MA1 | F1: Data | G1: 01/08/2025
A2: Recalculare cote TVA la 11,21 % si preturi, adaosuri (pret vanzare nu se modifica)
A3: Nr.crt | B3: Denumire | C3: UM | D3: Stoc | E3: ELEMENTE DE PRET VECHI | L3: ELEMENTE DE PRET NOU
E4: Cota TVA | F4: PuVanzare | G4: Val.vanzare | H4: PUlivrare | I4: Val.livrare | J4: PuTVA | K4: Val. TVA | L4: Cota TVA | M4: PuVanzare | N4: Val.vanzare | O4: PuTVA | P4: Val.TVA | Q4: PUlivrare | R4: Val.livrare | S4: Dif.adaos
A5: 1 | B5: Produs 0/0 | C5: BUC | D5: 10 | E5: 0 | F5: 20 | G5: =ROUND(F5*D5, 2) -> 200 | H5: =ROUND(F5*E5/(100+E5), 2) -> 0 | I5: =ROUND(G5-K5, 2) -> 200 | J5: =ROUND(F5*E5/(100+E5), 2) -> 0 | K5: =ROUND(J5*D5, 2) -> 0 | L5: =IF(E5=0,0,IF(E5=5,11,IF(E5=9,11,IF(E5=19,21,0)))) -> 0 | M5: =F5 -> 20 | N5: =ROUND(M5*D5, 2) -> 200 | O5: =ROUND(M5*L5/(100+L5), 2) -> 0 | P5: =ROUND(O5*D5, 2) -> 0 | Q5: =ROUND(M5-O5, 2) -> 20 | R5: =ROUND(N5-P5, 2) -> 200 | S5: =ROUND(G5-P5-I5, 2) -> 0
A6: 2 | B6: Produs 0/11 | C6: BUC | D6: 10 | E6: 0 | F6: 20 | G6: 200 | H6: 0 | I6: 200 | J6: 0 | K6: 0 | L6: 0 | M6: 20 | N6: 200 | O6: 0 | P6: 0 | Q6: 20 | R6: 200 | S6: 0
A7: 3 | B7: Produs 5/11 | C7: BUC | D7: 10 | E7: 5 | F7: 21 | G7: 210 | H7: 1 | I7: 200 | J7: 1 | K7: 10 | L7: 11 | M7: 21 | N7: 210 | O7: 2.08 | P7: 20.8 | Q7: 18.92 | R7: 189.2 | S7: -10.8
A8: 4 | B8: Produs 5/21 | C8: BUC | D8: 10 | E8: 5 | F8: 21 | G8: 210 | H8: 1 | I8: 200 | J8: 1 | K8: 10 | L8: 11 | M8: 21 | N8: 210 | O8: 2.08 | P8: 20.8 | Q8: 18.92 | R8: 189.2 | S8: -10.8
A9: 5 | B9: Produs 9/11 | C9: KG | D9: 10 | E9: 9 | F9: 22 | G9: 220 | H9: 1.82 | I9: 201.8 | J9: 1.82 | K9: 18.2 | L9: 11 | M9: 22 | N9: 220 | O9: 2.18 | P9: 21.8 | Q9: 19.82 | R9: 198.2 | S9: -3.6
A10: 6 | B10: Produs 9/21 | C10: KG | D10: 10 | E10: 9 | F10: 22 | G10: =ROUND(F10*D10, 2) -> 220 | H10: =ROUND(F10*E10/(100+E10), 2) -> 1.82 | I10: =ROUND(G10-K10, 2) -> 201.8 | J10: =ROUND(F10*E10/(100+E10), 2) -> 1.82 | K10: =ROUND(J10*D10, 2) -> 18.2 | L10: =IF(E10=0,0,IF(E10=5,11,IF(E10=9,11,IF(E10=19,21,0)))) -> 11 | M10: =F10 -> 22 | N10: =ROUND(M10*D10, 2) -> 220 | O10: =ROUND(M10*L10/(100+L10), 2) -> 2.18 | P10: =ROUND(O10*D10, 2) -> 21.8 | Q10: =ROUND(M10-O10, 2) -> 19.82 | R10: =ROUND(N10-P10, 2) -> 198.2 | S10: =ROUND(G10-P10-I10, 2) -> -3.6
A11: 7 | B11: Produs 19/21 | C11: KG | D11: 10 | E11: 19 | F11: 24 | G11: =ROUND(F11*D11, 2) -> 240 | H11: =ROUND(F11*E11/(100+E11), 2) -> 3.83 | I11: =ROUND(G11-K11, 2) -> 201.7 | J11: =ROUND(F11*E11/(100+E11), 2) -> 3.83 | K11: =ROUND(J11*D11, 2) -> 38.3 | L11: =IF(E11=0,0,IF(E11=5,11,IF(E11=9,11,IF(E11=19,21,0)))) -> 21 | M11: =F11 -> 24 | N11: =ROUND(M11*D11, 2) -> 240 | O11: =ROUND(M11*L11/(100+L11), 2) -> 4.17 | P11: =ROUND(O11*D11, 2) -> 41.7 | Q11: =ROUND(M11-O11, 2) -> 19.83 | R11: =ROUND(N11-P11, 2) -> 198.3 | S11: =ROUND(G11-P11-I11, 2) -> -3.4
B12: TOTAL | G12: =ROUND(SUM(G5:G11), 2) -> 1500 | I12: =ROUND(SUM(I5:I11), 2) -> 1405.3 | K12: =ROUND(SUM(K5:K11), 2) -> 94.7 | N12: =ROUND(SUM(N5:N11), 2) -> 1500 | P12: =ROUND(SUM(P5:P11), 2) -> 126.9 | R12: =ROUND(SUM(R5:R11), 2) -> 1373.1 | S12: =ROUND(SUM(S5:S11), 2) -> -32.2
B16: Nota contabila la 01/08/2025
E17: 378.2 | F17: = | G17: 371.2 | I17: =-S12 -> 32.2
E18: 371.2 | F18: = | G18: 4428 | I18: =P12-K12 -> 32.2

Sheet AdaosRamane
A1: ABC SRL/MA1 | F1: Data | G1: 01/08/2025
A2: Recalculre TVA la 11, 21% si pret vanzare pe baza de inventar faptic (se pastreaza adaosul existent)
A3: Nr.crt | B3: Denumire | C3: UM | D3: Stoc | E3: ELEMENTE DE PRET VECHI | L3: ELEMENTE DE PRET NOU
E4: Cota TVA | F4: PU vanzare | G4: Val. vanzare | H4: PU livrare | I4: Val. livrare | J4: PU TVA | K4: Val. TVA | L4: Cota TVA | M4: PU vanzare | N4: Val. vanzare | O4: PU livrare | P4: Val. livrare | Q4: PU TVA | R4: Val. TVA
A5: 1 | B5: Produs 0/0 | C5: BUC | D5: 10 | E5: 0 | F5: 20 | G5: =ROUND(F5*D5,2) -> 200 | H5: =ROUND(F5/(1+E5/100),2) -> 20 | I5: =H5*D5 -> 200 | J5: =F5-H5 -> 0 | K5: =ROUND(G5-I5,2) -> 0 | L5: =IF(E5=0,0,IF(E5=5,11,IF(E5=9,11,IF(E5=19,21,0)))) -> 0 | M5: =ROUND(H5*(1+L5/100),2) -> 20 | N5: =ROUND(M5*D5,2) -> 200 | O5: =ROUND(H5,2) -> 20 | P5: =ROUND(O5*D5,2) -> 200 | Q5: =ROUND(M5-O5,2) -> 0 | R5: =ROUND(N5-P5,2) -> 0
A6: 2 | B6: Produs 0/11 | C6: BUC | D6: 10 | E6: 0 | F6: 20 | G6: 200 | H6: 20 | I6: 200 | J6: 0 | K6: 0 | L6: 0 | M6: 20 | N6: 200 | O6: 20 | P6: 200 | Q6: 0 | R6: 0
A7: 3 | B7: Produs 5/11 | C7: BUC | D7: 10 | E7: 5 | F7: 21 | G7: 210 | H7: 20 | I7: 200 | J7: 1 | K7: 10 | L7: 11 | M7: 22.2 | N7: 222 | O7: 20 | P7: 200 | Q7: 2.2 | R7: 22
A8: 4 | B8: Produs 5/21 | C8: BUC | D8: 10 | E8: 5 | F8: 21 | G8: 210 | H8: 20 | I8: 200 | J8: 1 | K8: 10 | L8: 11 | M8: 22.2 | N8: 222 | O8: 20 | P8: 200 | Q8: 2.2 | R8: 22
A9: 5 | B9: Produs 9/11 | C9: KG | D9: 10 | E9: 9 | F9: 22 | G9: 220 | H9: 20.18 | I9: 201.8 | J9: 1.82 | K9: 18.2 | L9: 11 | M9: 22.4 | N9: 224 | O9: 20.18 | P9: 201.8 | Q9: 2.22 | R9: 22.2
A10: 6 | B10: Produs 9/21 | C10: KG | D10: 10 | E10: 9 | F10: 22 | G10: 220 | H10: 20.18 | I10: 201.8 | J10: 1.82 | K10: 18.2 | L10: 11 | M10: 22.4 | N10: 224 | O10: 20.18 | P10: 201.8 | Q10: 2.22 | R10: 22.2
A11: 7 | B11: Produs 19/21 | C11: KG | D11: 10 | E11: 19 | F11: 24 | G11: =ROUND(F11*D11,2) -> 240 | H11: =ROUND(F11/(1+E11/100),2) -> 20.17 | I11: =H11*D11 -> 201.7 | J11: =F11-H11 -> 3.83 | K11: =ROUND(G11-I11,2) -> 38.3 | L11: =IF(E11=0,0,IF(E11=5,11,IF(E11=9,11,IF(E11=19,21,0)))) -> 21 | M11: =ROUND(H11*(1+L11/100),2) -> 24.41 | N11: =ROUND(M11*D11,2) -> 244.1 | O11: =ROUND(H11,2) -> 20.17 | P11: =ROUND(O11*D11,2) -> 201.7 | Q11: =ROUND(M11-O11,2) -> 4.24 | R11: 42.4
B12: TOTAL | G12: =SUM(G5:G11) -> 1500 | I12: =SUM(I5:I11) -> 1405.3 | K12: =SUM(K5:K11) -> 94.7 | N12: =SUM(N5:N11) -> 1536.1 | P12: =SUM(P5:P11) -> 1405.3 | R12: =SUM(R5:R11) -> 130.8
A17: Nota contabila la 01/08/2025
A18: Diferenta TVA | E18: 371.2 | F18: = | G18: 4428 | H18: =R12-K12 -> 36.1
A19: Total vanzare vechi | H19: =G12 -> 1500
A20: Crestere TVA | H20: =H18 -> 36.1
A21: Total vanzare nou | H21: =N12 -> 1536.1
